fUSD/lending_fUSD_20260203
["ID","MTS","AMOUNT","RATE_DAILY","PERIOD"]
[404442326,1770143446341,-1503.0,0.00017967,2]
[404442327,1770143446351,-153.0,0.00017967,2]
[404442328,1770143446361,-151.0,0.00017967,2]
[404442329,1770143446370,-1503.0,0.00017967,2]
[404442330,1770143446379,-153.0,0.00017967,2]
[404442331,1770143446388,-1503.0,0.00017967,2]
[404442332,1770143446398,-153.0,0.00017967,2]
[404442333,1770143446407,-151.0,0.00017967,2]
[404442334,1770143446416,-1503.0,0.00017967,2]
[404442335,1770143446426,-151.0,0.00017967,2]
[404442336,1770143446435,-1503.0,0.00017967,2]
[404442337,1770143446444,-151.0,0.00017967,2]
[404442338,1770143446453,-1503.0,0.00017967,2]
[404442339,1770143446463,-151.0,0.00017967,2]
[404442340,1770143446473,-1503.0,0.00017967,2]
[404442341,1770143446483,-191.58690164,0.00017967,2]
[404442342,1770143446496,-1503.0,0.00017967,2]
[404442343,1770143446506,-1503.0,0.00017967,2]
[404442344,1770143446515,-153.0,0.00017967,2]
[404442345,1770143446525,-1503.0,0.00017967,2]
[404442346,1770143446535,-153.0,0.00017967,2]
[404442347,1770143446545,-1503.0,0.00017967,2]
[404442348,1770143446555,-153.0,0.00017967,2]
[404442349,1770143446564,-1503.0,0.00017967,2]
[404442350,1770143446574,-153.0,0.00017967,2]
[404442351,1770143446584,-1503.0,0.00017967,2]
[404442352,1770143446593,-153.0,0.00017967,2]
[404442353,1770143446603,-1503.0,0.00017967,2]
[404442354,1770143446612,-153.0,0.00017967,2]
[404442355,1770143446622,-1503.0,0.00017967,2]
[404442356,1770143446631,-153.0,0.00017967,2]
[404442357,1770143446641,-1503.0,0.00017967,2]
[404442358,1770143446651,-153.0,0.00017967,2]
[404442359,1770143446661,-1503.0,0.00017967,2]
[404442360,1770143446670,-153.0,0.00017967,2]
[404442361,1770143446678,-153.0,0.00017967,2]
[404442362,1770143446688,-1503.0,0.00017967,2]
[404442363,1770143446697,-153.0,0.00017967,2]
[404442364,1770143446708,-1503.0,0.00017967,2]
[404442365,1770143446722,-1503.0,0.00017967,2]
[404442366,1770143446735,-153.0,0.00017967,2]
[404442367,1770143446749,-1503.0,0.00017967,2]
[404442368,1770143446759,-153.0,0.00017967,2]
[404442369,1770143446768,-1503.0,0.00017967,2]
[404442370,1770143446778,-153.0,0.00017967,2]
[404442371,1770143446787,-1503.0,0.00017967,2]
[404442372,1770143446797,-153.0,0.00017967,2]
[404442373,1770143446807,-1503.0,0.00017967,2]
[404442374,1770143446817,-153.0,0.00017967,2]
[404442375,1770143446827,-1503.0,0.00017967,2]
[404442376,1770143446836,-153.0,0.00017967,2]
[404442377,1770143446846,-1503.0,0.00017967,2]
[404442378,1770143446855,-153.0,0.00017967,2]
[404442379,1770143446866,-1503.0,0.00017967,2]
[404442380,1770143446875,-153.0,0.00017967,2]
[404442381,1770143446884,-1503.0,0.00017967,2]
[404442382,1770143446894,-153.0,0.00017967,2]
[404442383,1770143446903,-1503.0,0.00017967,2]
[404442384,1770143446911,-1503.0,0.00017967,2]
[404442385,1770143446921,-153.0,0.00017967,2]
[404442387,1770143446995,-1503.0,0.00017967,2]
[404442388,1770143447004,-153.0,0.00017967,2]
[404442389,1770143447014,-1503.0,0.00017967,2]
[404442390,1770143447024,-153.0,0.00017967,2]
[404442391,1770143447034,-1503.0,0.00017967,2]
[404442392,1770143447043,-1503.0,0.00017967,2]
[404442393,1770143447053,-1503.0,0.00017967,2]
[404442394,1770143447062,-1503.0,0.00017967,2]
[404442395,1770143447071,-1503.0,0.00017967,2]
[404442396,1770143447081,-1503.0,0.00017967,2]
[404442397,1770143447091,-1390.33238812,0.00017967,2]
[404442398,1770143447100,-150.0,0.00017969,2]
[404442399,1770143447110,-400.0,0.0001797,2]
[404442400,1770143447119,-400.7491143,0.0001797,2]
[404442401,1770143447129,-1000.0,0.00017972,2]
[404442402,1770143447138,-157.95285948,0.00017972,2]
[404442403,1770143447147,-562.28195765,0.00017973,2]
[404442404,1770143447156,-500.0,0.00017973,2]
[404442405,1770143447165,-166.51015303,0.00017973,2]
[404442406,1770143447175,-500.0,0.00017973,2]
[404442407,1770143447184,-500.0,0.00017973,2]
[404442408,1770143447193,-500.0,0.00017973,2]
[404442409,1770143447204,-500.0,0.00017973,2]
[404442410,1770143447213,-500.0,0.00017973,2]
[404442411,1770143447222,-500.55069623,0.00017973,2]
[404442412,1770143447232,-500.0,0.00017973,2]
[404442413,1770143447244,-500.0,0.00017973,2]
[404442414,1770143447253,-5888.0,0.00017973,2]
[404442415,1770143447263,-165.44105973,0.00017974,2]
[404442416,1770143447273,-930.52052436,0.00017982,2]
[404442417,1770143447284,-19474.6829835,0.0001799,3]
[404442418,1770143447293,-151.0,0.00017997,2]
[404442419,1770143447303,-500.0,0.00017998,2]
[404442420,1770143447313,-500.0,0.00017998,2]
[404442421,1770143447323,-500.0,0.00017998,2]
[404442422,1770143447333,-500.0,0.00017998,2]
[404442423,1770143447343,-1004.24833386,0.00017999,5]
[404442424,1770143447352,-1004.24833386,0.00017999,5]
[404442425,1770143447361,-17920.3463314,0.00017999,2]
[404442426,1770143447371,-410582.4983633,0.00017999,2]
[404442427,1770143447380,-300.0,0.00017999,2]
[404442428,1770143447389,-300.0,0.00017999,2]
[404442429,1770143447398,-555.66,0.00017999,2]
[404442430,1770143447408,-666.0,0.00017999,2]
[404442431,1770143447417,-200.0,0.00017999,2]
[404442432,1770143447430,-300.0,0.00017999,2]
[404442433,1770143447440,-1903.206863,0.00017999,2]
[404442434,1770143447450,-1903.206863,0.00017999,2]
[404442435,1770143447459,-1903.206863,0.00017999,2]
[404442436,1770143447469,-1903.206863,0.00017999,2]
[404442437,1770143447479,-151.0,0.00017999,2]
[404442438,1770143447492,-151.0,0.00017999,2]
[404442439,1770143447501,-151.0,0.00017999,2]
[404442440,1770143447511,-961766.99999681,0.00018,2]
[404442441,1770143447854,-505.57387787,0.00018,2]
[404442442,1770143447866,-6450.64457052,0.00018,2]
[404442443,1770143448253,-11840.89786936,7.029e-05,2]
[404442444,1770143448302,-4360.0,7.029e-05,2]
[404442445,1770143448315,-646.1805203,7.029e-05,2]
[404442446,1770143448334,-7465.2656799,7.029e-05,2]
[404442448,1770143448346,-288.8680183,7.029e-05,2]
[404442450,1770143448357,-29888.58999998,7.029e-05,2]
[404442452,1770143448369,-3343.95771922,7.029e-05,2]
[404442454,1770143448389,-1734.2300834,7.029e-05,2]
[404442455,1770143448404,-923.52172512,7.029e-05,2]
[404442457,1770143448420,-1500.0,7.029e-05,2]
[404442459,1770143448430,-521.87036241,7.029e-05,2]
[404442460,1770143448441,-325.1172002,7.029e-05,2]
[404442461,1770143448454,-749.09,7.029e-05,2]
[404442462,1770143448465,-2892.85402278,7.029e-05,2]
[404442463,1770143448477,-381.4615255,7.029e-05,2]
[404442464,1770143448492,-280500.00000001,7.029e-05,2]
[404442465,1770143448508,-688.7483796,7.029e-05,2]
[404442466,1770143448519,-7451.1,7.029e-05,2]
[404442467,1770143448531,-1059.43662419,7.029e-05,2]
[404442468,1770143448542,-1229.78115562,7.029e-05,2]
[404442469,1770143448554,-2304.42325273,7.029e-05,2]
[404442470,1770143448565,-927.77,7.029e-05,2]
[404442471,1770143448577,-1743.75217009,7.029e-05,2]
[404442472,1770143448588,-299.028,7.029e-05,2]
[404442473,1770143448599,-29997.57796666,7.029e-05,2]
[404442538,1770143611858,-200.0,6.7e-05,2]
[404442539,1770143611889,-250.0,6.75e-05,2]
[404442540,1770143611918,-500.0,6.8e-05,2]
[404442541,1770143611949,-250.0,6.858e-05,2]
[404442542,1770143611979,-300.0,6.887e-05,2]
[404442543,1770143612008,-1200.0,6.887e-05,2]
[404442544,1770143612036,-669.316,6.888e-05,2]
[404442545,1770143612240,-2969.574,6.888e-05,2]
[404442546,1770143612264,-291.804,6.888e-05,2]
[404442547,1770143612317,-3769.058,6.888e-05,2]
[404442548,1770143612350,-700.0,6.9e-05,2]
[404442549,1770143612380,-61.894,7e-05,2]
[404442550,1770143612435,-938.106,7e-05,2]
[404442562,1770143739249,473.0596,6.6e-05,2]
[404442563,1770143760387,-150.0,7.027e-05,2]
[404442564,1770143760423,-300.0,7.027e-05,2]
[404442565,1770143760451,-1200.0,7.027e-05,2]
[404442566,1770143760479,-250.0,7.028e-05,2]
[404442567,1770143760508,-1004.24833386,7.028e-05,2]
[404442568,1770143760576,9526.9504,6.9e-05,2]
[404442569,1770143760604,10000.01,6.9e-05,2]
[404442570,1770143760636,10000.01,6.9e-05,2]
[404442571,1770143761103,-4214.57293228,6.9e-05,2]
[404442572,1770143761935,-10000.01,6.9e-05,2]
[404442573,1770143762118,-10000.01,6.9e-05,2]
[404442574,1770143762248,-10000.01,6.9e-05,2]
[404442575,1770143762379,-10000.01,6.9e-05,2]
[404442576,1770143762512,-10000.01,6.9e-05,2]
[404442577,1770143762629,-10000.01,6.9e-05,2]
[404442580,1770143774922,-300.0,6.899e-05,2]
[404442581,1770143774968,-9400.01,6.9e-05,2]
[404442582,1770143775153,-10000.01,6.9e-05,2]
[404442583,1770143776072,-10000.01,6.9e-05,2]
[404442584,1770143777826,-10000.01,6.9e-05,2]
[404442585,1770143782721,-10000.01,6.9e-05,2]
[404442586,1770143784979,-10000.01,6.9e-05,2]
[404442587,1770143785340,-10000.01,6.9e-05,2]
[404442588,1770143785755,-10000.01,6.9e-05,2]
[404442597,1770143786319,-10000.01,6.9e-05,2]
[404442600,1770143786806,-10000.01,6.9e-05,2]
[404442607,1770143802131,535.28168245,6.899e-05,2]
[404442608,1770143802481,500.0,6.899e-05,2]
[404442609,1770143802836,269.24123157,6.899e-05,2]
[404442610,1770143807361,332.98476444,6.899e-05,2]
[404442611,1770143807414,500.0,6.899e-05,2]
[404442612,1770143807473,500.0,6.899e-05,2]
[404442613,1770143807527,500.0,6.899e-05,2]
[404442614,1770143807579,500.0,6.899e-05,2]
[404442615,1770143807632,514.25804084,6.899e-05,2]
[404442616,1770143807674,500.0,6.899e-05,2]
[404442617,1770143807728,500.0,6.899e-05,2]
[404442618,1770143807779,500.0,6.899e-05,2]
[404442619,1770143807868,500.0,6.899e-05,2]
[404442620,1770143807936,500.0,6.899e-05,2]
[404442621,1770143807981,500.0,6.899e-05,2]
[404442622,1770143808032,500.0,6.899e-05,2]
[404442623,1770143808078,500.0,6.899e-05,2]
[404442624,1770143808140,500.0,6.899e-05,2]
[404442626,1770143808181,500.0,6.899e-05,2]
[404442628,1770143808245,500.0,6.899e-05,2]
[404442629,1770143808296,348.2442807,6.899e-05,2]
[404442630,1770143808321,151.7557193,6.899e-05,2]
[404442631,1770143808367,500.0,6.899e-05,2]
[404442632,1770143808423,500.0,6.899e-05,2]
[404442633,1770143808476,500.0,6.899e-05,2]
[404442634,1770143808527,500.0,6.899e-05,2]
[404442635,1770143808574,500.0,6.899e-05,2]
[404442636,1770143808622,500.0,6.899e-05,2]
[404442637,1770143808661,500.0,6.899e-05,2]
[404442638,1770143808705,201.59437664,6.899e-05,2]
[404442639,1770143808749,500.0,6.899e-05,2]
[404442640,1770143808790,500.0,6.899e-05,2]
[404442641,1770143808831,500.0,6.899e-05,2]
[404442642,1770143808876,500.0,6.899e-05,2]
[404442643,1770143808920,500.0,6.899e-05,2]
[404442644,1770143808965,500.0,6.899e-05,2]
[404442645,1770143809269,500.0,6.899e-05,2]
[404442646,1770143809314,500.0,6.899e-05,2]
[404442647,1770143809361,500.0,6.899e-05,2]
[404442648,1770143809410,500.0,6.899e-05,2]
[404442649,1770143809464,500.0,6.899e-05,2]
[404442650,1770143809504,500.0,6.899e-05,2]
[404442651,1770143809552,146.65990406,6.899e-05,2]
[404442652,1770143809575,353.34009594,6.899e-05,2]
[404442653,1770143809617,500.0,6.899e-05,2]
[404442654,1770143809663,500.0,6.899e-05,2]
[404442655,1770143809708,500.0,6.899e-05,2]
[404442656,1770143809762,500.0,6.899e-05,2]
[404442657,1770143809812,500.0,6.899e-05,2]
[404442658,1770143809850,500.0,6.899e-05,2]
[404442659,1770143809895,500.0,6.899e-05,2]
[404442660,1770143809937,500.0,6.899e-05,2]
[404442661,1770143809977,500.0,6.899e-05,2]
[404442662,1770143810023,500.0,6.899e-05,2]
[404442663,1770143810076,500.0,6.899e-05,2]
[404442664,1770143810122,500.0,6.899e-05,2]
[404442665,1770143810172,500.0,6.899e-05,2]
[404442666,1770143810211,500.0,6.899e-05,2]
[404442674,1770143825111,623.68777011,6.899e-05,2]
[404442675,1770143825175,500.0,6.899e-05,2]
[404442676,1770143825238,500.0,6.899e-05,2]
[404442677,1770143825298,500.0,6.899e-05,2]
[404442678,1770143825355,500.0,6.899e-05,2]
[404442679,1770143825418,22.98213395,6.899e-05,2]
[404442680,1770143825442,477.01786605,6.899e-05,2]
[404442681,1770143825508,500.0,6.899e-05,2]
[404442682,1770143825578,500.0,6.899e-05,2]
[404442683,1770143825642,500.0,6.899e-05,2]
[404442684,1770143825691,500.0,6.899e-05,2]
[404442685,1770143825753,500.0,6.899e-05,2]
[404442686,1770143825821,500.0,6.899e-05,2]
[404442687,1770143825886,500.0,6.899e-05,2]
[404442688,1770143825950,500.0,6.899e-05,2]
[404442689,1770143826004,500.0,6.899e-05,2]
[404442690,1770143826075,500.0,6.899e-05,2]
[404442691,1770143826135,500.0,6.899e-05,2]
[404442692,1770143826188,500.0,6.899e-05,2]
[404442693,1770143826259,500.0,6.899e-05,2]
[404442694,1770143826319,500.0,6.899e-05,2]
[404442695,1770143826368,500.0,6.899e-05,2]
[404442696,1770143826424,500.0,6.899e-05,2]
[404442697,1770143826475,500.0,6.899e-05,2]
[404442699,1770143827942,174.48261702,6.899e-05,2]
[404442700,1770143827980,848.50951693,6.899e-05,2]
[404442701,1770143828004,640.61550055,6.899e-05,2]
[404442702,1770143828047,1483.9891503,6.899e-05,2]
[404442704,1770143835902,248.99059239,6.899e-05,2]
[404442705,1770143836305,4322.36992004,6.899e-05,2]
[404442706,1770143836351,2383.66746625,6.899e-05,2]
[404442708,1770143836548,920.37737047,6.899e-05,2]
[404442709,1770143836573,624.81336891,6.899e-05,2]
[404442710,1770143836659,1338.10693468,6.899e-05,2]
[404442722,1770143881492,300.0,6.899e-05,2]
[404442729,1770143903898,493.1816,6.6e-05,2]
[404442730,1770143907869,1200.0,6.899e-05,2]
[404442731,1770143942341,150.0,6.899e-05,2]
[404442732,1770143942400,300.0,6.899e-05,2]
[404442733,1770143943720,300.0,6.899e-05,2]
[404442760,1770144001547,1200.0,6.899e-05,2]
[404442765,1770144008903,151.0,6.897e-05,2]
[404442772,1770144083382,3942.90809641,6.8e-05,2]
[404442773,1770144083412,10000.01,6.8e-05,2]
[404442774,1770144083442,10000.01,6.8e-05,2]
[404442776,1770144083474,10000.01,6.8e-05,2]
[404442778,1770144083505,10000.01,6.8e-05,2]
[404442779,1770144083549,10000.01,6.8e-05,2]
[404442780,1770144083582,10000.01,6.8e-05,2]
[404442781,1770144083614,10000.01,6.8e-05,2]
[404442782,1770144083646,10000.01,6.8e-05,2]
[404442797,1770144165156,500.0,0.00014,14]
[404442798,1770144177017,500.0,0.0002,30]
[404442804,1770144346306,-150.0,6.761e-05,2]
[404442806,1770144396283,-242.95,6.7e-05,2]
[404442807,1770144396331,-1050.0,6.761e-05,2]
[404442808,1770144396367,-300.0,6.761e-05,2]
[404442809,1770144396398,-535.453,6.762e-05,2]
[404442810,1770144396429,-118.855,6.762e-05,2]
[404442811,1770144397048,-4494.516,6.762e-05,2]
[404442812,1770144397120,-1010.978,6.762e-05,2]
[404442813,1770144405281,7978.054,6.699e-05,2]
[404442814,1770144405307,10000.01,6.699e-05,2]
[404442815,1770144405333,10000.01,6.699e-05,2]
[404442892,1770144569374,-476.46620513,6.689e-05,2]
[404442893,1770144569402,-538.4688621,6.698e-05,2]
[404442894,1770144569428,-361.88426136,6.698e-05,2]
[404442895,1770144569458,-500.0,6.698e-05,2]
[404442896,1770144569487,-500.0,6.698e-05,2]
[404442897,1770144569516,-500.0,6.698e-05,2]
[404442898,1770144569546,-500.0,6.698e-05,2]
[404442899,1770144569576,-500.0,6.698e-05,2]
[404442900,1770144569606,-620.15943767,6.698e-05,2]
[404442901,1770144569630,-300.0,6.698e-05,2]
[404442902,1770144569655,-150.0,6.698e-05,2]
[404442903,1770144569679,-300.0,6.698e-05,2]
[404442904,1770144569704,-250.0,6.698e-05,2]
[404442905,1770144569738,-14389.02123374,6.699e-05,2]
[404442917,1770144631771,-151.0,6.696e-05,2]
[404442918,1770144631781,-1200.0,6.698e-05,2]
[404442919,1770144631792,-208.0,6.698e-05,2]
[404442920,1770144631802,-250.0,6.698e-05,2]
[404442921,1770144631812,-7843.00722466,6.699e-05,2]
[404442922,1770144631824,-353.8945,6.699e-05,2]
[404442923,1770144631837,-265.0,6.699e-05,2]
[404442924,1770144631862,-743.39,6.699e-05,2]
[404442925,1770144631873,-503.21044542,6.699e-05,2]
[404442926,1770144631889,-6309.0482702,6.699e-05,2]
[404442927,1770144631900,-6351.0,6.699e-05,2]
[404442929,1770144631911,-1096.86681836,6.699e-05,2]
[404442931,1770144631923,-2242.16787944,6.699e-05,2]
[404442932,1770144631934,-1503.8139483,6.699e-05,2]
[404442933,1770144631946,-3422.01594063,6.699e-05,2]
[404442934,1770144631957,-6996.82393268,6.699e-05,2]
[404442935,1770144631968,-345.11572277,6.699e-05,2]
[404442936,1770144632244,-2354.96308394,6.699e-05,2]
[404442941,1770144637659,-74000.00000002,6.699e-05,2]
[404442942,1770144637712,-5517.775,6.699e-05,2]
[404442943,1770144637724,-1698518.9590896,6.699e-05,2]
[404442944,1770144638415,-732.45,6.699e-05,2]
[404442945,1770144638429,-5717.06548,6.699e-05,2]
[404442946,1770144638525,-141722.26638484,6.699e-05,2]
[404442947,1770144638643,-426.85620312,6.699e-05,2]
[404442958,1770144639707,-2984.0430842,6.699e-05,2]
[404442959,1770144639763,-36861.99999999,6.699e-05,2]
[404442960,1770144640085,-369.75633859,6.699e-05,2]
[404442961,1770144640096,-1450451.4154195,6.699e-05,2]
[404442962,1770144640106,-1000.0,6.899e-05,2]
[404442963,1770144640116,-215.41950212,6.899e-05,2]
[404442964,1770144640125,-1348.01360577,6.899e-05,2]
[404442965,1770144640135,-61542.61000504,6.9e-05,2]
[404442967,1770144640145,-404.91,6.9e-05,2]
[404442968,1770144640154,-5445.98729512,6.9e-05,2]
[404442969,1770144640163,-348.07987377,6.9e-05,2]
[404442970,1770144640172,-43385.90419923,7.028e-05,2]
[404442971,1770144640181,-250.0,7.368e-05,2]
[404442972,1770144640191,-250.0,7.368e-05,2]
[404442975,1770144640208,-255.0,7.368e-05,2]
[404442977,1770144640220,-420.0,7.368e-05,2]
[404442979,1770144640230,-1680.0,7.368e-05,2]
[404442981,1770144640239,-5498.21,7.487e-05,2]
[404442983,1770144640248,-9999.99,7.589e-05,2]
[404442985,1770144640258,-299.99,7.589e-05,2]
[404442987,1770144640268,-150.99,7.589e-05,2]
[404442989,1770144640277,-9999.99,7.589e-05,2]
[404442991,1770144640286,-735.95,7.589e-05,2]
[404442993,1770144640296,-999.99,7.589e-05,2]
[404442995,1770144640305,-9999.99,7.589e-05,2]
[404442997,1770144640315,-23906.99,7.589e-05,2]
[404442999,1770144640324,-150.99,7.589e-05,2]
[404443001,1770144640333,-182.0,7.784e-05,2]
[404443003,1770144640343,-1276.0,7.831e-05,2]
[404443004,1770144640352,-181.0,7.839e-05,2]
[404443005,1770144640362,-1398.0,7.846e-05,2]
[404443006,1770144640371,-187.0,7.88e-05,2]
[404443007,1770144640380,-5198.93,8.042e-05,2]
[404443009,1770144640390,-25417.35,8.063e-05,2]
[404443010,1770144640400,-433.0,8.104e-05,2]
[404443011,1770144640410,-587.0,8.104e-05,2]
[404443012,1770144640419,-2351.0,8.104e-05,2]
[404443013,1770144640429,-500.0,8.144e-05,3]
[404443014,1770144640438,-1966.102901,8.178e-05,2]
[404443015,1770144640447,-256.43,8.219e-05,2]
[404443016,1770144640458,-500.0,8.219e-05,2]
[404443017,1770144640467,-500.0,8.219e-05,2]
[404443018,1770144640476,-500.0,8.219e-05,2]
[404443019,1770144640487,-500.0,8.219e-05,2]
[404443020,1770144640497,-500.0,8.219e-05,2]
[404443022,1770144640506,-568.61521274,8.219e-05,2]
[404443024,1770144640516,-500.0,8.219e-05,2]
[404443026,1770144640525,-500.0,8.219e-05,2]
[404443028,1770144640535,-500.0,8.219e-05,2]
[404443030,1770144640545,-500.0,8.219e-05,2]
[404443032,1770144640553,-500.0,8.219e-05,2]
[404443033,1770144640567,-450.0,8.219e-05,2]
[404443035,1770144640577,-500.0,8.219e-05,2]
[404443038,1770144640587,-1852.42,8.468e-05,2]
[404443039,1770144640597,-256.43,8.493e-05,2]
[404443040,1770144640607,-500.0,8.493e-05,2]
[404443041,1770144640616,-62456.39,8.499e-05,2]
[404443042,1770144640629,-256.43,8.767e-05,2]
[404443043,1770144640639,-500.0,8.767e-05,2]
[404443044,1770144640648,-250.0,8.851e-05,2]
[404443045,1770144640657,-736.0,8.915e-05,2]
[404443046,1770144640668,-823.0,8.915e-05,2]
[404443047,1770144640677,-3292.0,8.915e-05,2]
[404443048,1770144640687,-1830.15,9e-05,2]
[404443049,1770144640697,-256.43,9.041e-05,2]
[404443050,1770144640708,-500.0,9.041e-05,2]
[404443051,1770144640718,-256.43,9.315e-05,2]
[404443052,1770144640730,-500.0,9.315e-05,2]
[404443053,1770144640740,-256.43,9.589e-05,2]
[404443054,1770144640750,-500.0,9.589e-05,2]
[404443055,1770144640760,-618.0,9.806e-05,2]
[404443056,1770144640774,-161.0,9.806e-05,2]
[404443057,1770144640784,-2872.0,9.806e-05,2]
[404443058,1770144640794,-256.43,9.863e-05,2]
[404443059,1770144640804,-500.0,9.863e-05,2]
[404443060,1770144640814,-348.59,9.874e-05,2]
[404443061,1770144640825,-322.6107,9.935e-05,2]
[404443062,1770144640835,-578.20924309,9.935e-05,2]
[404443063,1770144640845,-174.61919141,9.935e-05,2]
[404443064,1770144640855,-200.0,9.935e-05,2]
[404443065,1770144640864,-277.35679052,9.935e-05,2]
[404443066,1770144640874,-160.0,9.935e-05,2]
[404443067,1770144640884,-721.12765534,9.935e-05,2]
[404443068,1770144640894,-209.40437684,9.935e-05,2]
[404443069,1770144640903,-209.40437684,9.935e-05,2]
[404443070,1770144640913,-500.0,9.935e-05,2]
[404443071,1770144640923,-500.0,9.935e-05,2]
[404443072,1770144640932,-500.0,9.935e-05,2]
[404443073,1770144640942,-500.0,9.935e-05,2]
[404443074,1770144640951,-500.0,9.935e-05,2]
[404443075,1770144640961,-500.0,9.935e-05,2]
[404443076,1770144640970,-500.0,9.935e-05,2]
[404443077,1770144640980,-500.0,9.935e-05,2]
[404443078,1770144640990,-500.0,9.935e-05,2]
[404443079,1770144641001,-500.0,9.935e-05,2]
[404443080,1770144641010,-500.0,9.935e-05,2]
[404443081,1770144641020,-209.40437684,9.935e-05,2]
[404443082,1770144641030,-500.0,9.935e-05,2]
[404443083,1770144641040,-642.81998071,9.935e-05,2]
[404443084,1770144641050,-217.15233878,9.99e-05,2]
[404443085,1770144641060,-500.0,0.0001,2]
[404443086,1770144641070,-500.0,0.0001,2]
[404443087,1770144641080,-500.0,0.0001,2]
[404443088,1770144641089,-500.0,0.0001,2]
[404443089,1770144641099,-151.0,0.0001,2]
[404443090,1770144641110,-151.0,0.0001,2]
[404443091,1770144641119,-500.0,0.0001,2]
[404443092,1770144641129,-151.0,0.0001,2]
[404443093,1770144641143,-500.0,0.0001,2]
[404443094,1770144641153,-151.0,0.0001,2]
[404443095,1770144641163,-500.0,0.0001,2]
[404443096,1770144641172,-151.0,0.0001,2]
[404443097,1770144641182,-500.0,0.0001,2]
[404443098,1770144641193,-151.0,0.0001,2]
[404443099,1770144641203,-500.0,0.0001,2]
[404443100,1770144641213,-500.0,0.0001,2]
[404443101,1770144641224,-151.0,0.0001,2]
[404443102,1770144641235,-500.0,0.0001,2]
[404443103,1770144641245,-151.0,0.0001,2]
[404443104,1770144641255,-151.0,0.0001,2]
[404443105,1770144641266,-151.0,0.0001,2]
[404443106,1770144641275,-200.0,0.0001,2]
[404443107,1770144641284,-151.0,0.0001,2]
[404443108,1770144641298,-200.0,0.0001,2]
[404443109,1770144641308,-151.0,0.0001,2]
[404443110,1770144641318,-151.0,0.0001,2]
[404443111,1770144641327,-500.0,0.0001,2]
[404443112,1770144641340,-151.0,0.0001,2]
[404443113,1770144641350,-500.0,0.0001,2]
[404443114,1770144641359,-151.0,0.0001,2]
[404443115,1770144641369,-500.0,0.0001,2]
[404443116,1770144641378,-151.0,0.0001,2]
[404443117,1770144641388,-500.0,0.0001,2]
[404443118,1770144641397,-151.0,0.0001,2]
[404443119,1770144641407,-500.0,0.0001,2]
[404443120,1770144641417,-151.0,0.0001,2]
[404443121,1770144641427,-500.0,0.0001,2]
[404443122,1770144641437,-151.0,0.0001,2]
[404443123,1770144641446,-500.0,0.0001,2]
[404443124,1770144641457,-500.0,0.0001,2]
[404443125,1770144641466,-500.0,0.0001,2]
[404443126,1770144641476,-500.0,0.0001,2]
[404443127,1770144641487,-500.0,0.0001,2]
[404443128,1770144641497,-500.0,0.0001,2]
[404443129,1770144641507,-151.0,0.0001,2]
[404443130,1770144641518,-151.0,0.0001,2]
[404443131,1770144641531,-151.0,0.0001,2]
[404443132,1770144641543,-151.0,0.0001,2]
[404443133,1770144641554,-151.0,0.0001,2]
[404443134,1770144641565,-151.0,0.0001,2]
[404443135,1770144641576,-151.0,0.0001,2]
[404443136,1770144641587,-151.0,0.0001,2]
[404443137,1770144641597,-151.0,0.0001,2]
[404443138,1770144641607,-151.0,0.0001,2]
[404443139,1770144641622,-151.0,0.0001,2]
[404443140,1770144641632,-151.0,0.0001,2]
[404443141,1770144641642,-151.0,0.0001,2]
[404443142,1770144641653,-151.0,0.0001,2]